bitfinex/quotes_ETHUSD_20260131
["timestamp","ask_amount","ask_price","bid_price","bid_amount"]
[1769879371649,17.81010777,2467.6,2464.4,0.012212]
[1769879371950,7.05220524,2468.4,2465.1,0.012212]
[1769879372141,30.0,2468.2,2465.2,0.012212]
[1769879372339,3.0001,2468.1,2465.5,0.012212]
[1769879372543,30.0,2468.0,2464.8,0.012212]
[1769879372761,0.1024,2467.9,2464.8,0.012212]
[1769879373068,0.1024,2467.9,2464.3,0.2457823]
[1769879373069,10.86030253,2467.5,2464.3,0.012212]
[1769879373246,0.1024,2467.3,2464.5,0.012212]
[1769879373447,0.1024,2467.1,2464.3,0.012212]
[1769879373767,10.86030253,2466.9,2462.9,2.06495946]
[1769879373948,7.25277339,2467.1,2463.5,0.0011]
[1769879373949,0.2335703,2466.4,2463.5,0.0011]
[1769879374155,0.1024,2466.2,2463.5,0.0011]
[1769879374491,0.1024,2465.8,2463.5,0.0011]
[1769879374787,11.09387283,2465.3,2462.3,0.0011]
[1769879375067,10.85921353,2465.1,2462.3,0.0011]
[1769879375292,0.1024,2464.9,2462.3,0.0011]
[1769879375587,1.56332135,2464.9,2462.3,0.0011]
[1769879375879,0.1024,2464.9,2462.3,0.0011]
[1769879376246,0.1024,2465.4,2462.3,0.0011]
[1769879376448,0.1024,2465.7,2463.1,0.012212]
[1769879376643,10.75681353,2466.9,2462.8,0.012212]
[1769879376871,0.1024,2466.1,2463.2,0.012212]
[1769879377094,0.1024,2465.8,2461.9,4.06157345]
[1769879377238,0.012212,2463.1,2461.3,0.0011]
[1769879377441,0.012212,2463.4,2461.3,0.0011]
[1769879377943,0.012212,2462.8,2461.3,0.0011]
[1769879378472,0.012212,2463.2,2461.3,0.0011]
[1769879378775,0.012212,2464.4,2462.0,2.08836107]
[1769879378977,2.05695039,2467.2,2461.9,0.012212]
[1769879378978,0.012212,2464.7,2462.3,12.69190291]
[1769879379162,0.012212,2464.8,2462.4,12.69190291]
[1769879379546,0.012212,2464.8,2462.1,2.29830461]
[1769879379547,0.012212,2464.0,2462.1,2.29830461]
[1769879379745,0.012212,2464.3,2462.1,2.29830461]
[1769879380045,0.012212,2464.3,2462.3,1.01531088]
[1769879380244,0.012212,2464.7,2462.3,1.02752288]
[1769879380638,0.012212,2464.7,2462.4,0.2457823]
[1769879380856,0.012212,2465.1,2462.7,0.012212]
[1769879381268,0.012212,2464.4,2462.3,13.70721379]
[1769879381472,0.012212,2464.4,2462.3,12.70411491]
[1769879381643,0.012212,2464.4,2462.2,0.22983046]
[1769879381969,0.012212,2463.6,2462.5,0.0011]
[1769879382341,0.012212,2463.6,2462.3,0.0011]
[1769879382541,0.012212,2463.6,2461.4,2.00407165]
[1769879383271,6.78,2463.5,2461.3,0.0011]
[1769879383472,0.012212,2463.4,2461.3,0.0011]
[1769879383676,0.012212,2463.8,2461.3,0.0011]
[1769879383843,7.25277339,2465.0,2461.3,0.0011]
[1769879383844,0.012212,2463.4,2461.3,0.0011]
[1769879384049,0.012212,2463.8,2462.2,1.01533466]
[1769879384246,0.012212,2463.8,2461.6,4.06234983]
[1769879384471,0.72527734,2464.9,2461.7,0.50901614]
[1769879384472,0.012212,2464.2,2461.7,0.50901614]
[1769879384647,0.012212,2463.5,2461.7,0.50901614]
[1769879384973,0.012212,2463.5,2461.6,1.01559961]
[1769879385144,0.012212,2464.0,2461.6,1.01559961]
[1769879385978,0.012212,2463.1,2461.3,0.0011]
[1769879386272,0.012212,2463.4,2461.3,0.0011]
[1769879387190,0.012212,2463.2,2461.3,0.0011]
[1769879387488,0.012212,2463.5,2461.3,0.0011]
[1769879387791,0.012212,2463.3,2461.0,0.013312]
[1769879388000,10.94079932,2464.7,2461.7,0.012212]
[1769879388001,0.012212,2463.9,2461.7,0.012212]
[1769879388180,0.012212,2463.9,2461.3,0.012212]
[1769879388181,0.012212,2463.3,2461.0,0.0011]
[1769879388363,30.0,2463.2,2461.0,0.0011]
[1769879388686,0.012212,2461.5,2460.1,0.0011]
[1769879389366,0.012212,2460.8,2460.1,0.0011]
[1769879390479,0.012212,2461.5,2460.1,0.0011]
[1769879390792,0.1024,2462.5,2460.1,0.0011]
[1769879390961,0.012212,2462.0,2460.1,0.0011]
[1769879391381,30.0,2461.9,2460.1,0.0011]
[1769879391582,0.012212,2461.2,2460.1,0.0011]
[1769879391787,0.012212,2461.2,2458.6,6.15476691]
[1769879391788,0.012212,2461.2,2458.7,0.012212]
[1769879392067,0.012212,2459.5,2458.7,0.21119306]
[1769879392293,0.012212,2459.5,2458.1,0.0011]
[1769879392461,10.72827777,2461.8,2458.1,13.56116783]
[1769879392666,30.1024,2461.7,2458.6,1.01681078]
[1769879392886,0.1024,2461.5,2458.3,13.56006783]
[1769879393078,30.0,2461.4,2458.4,1.0168962]
[1769879393278,0.1024,2461.3,2458.3,13.56006783]
[1769879393473,30.0,2461.2,2458.5,2.08535636]
[1769879393685,0.1024,2461.2,2458.5,2.08535636]
[1769879394001,1.77071249,2461.3,2458.5,1.01687886]
[1769879394173,1.79810512,2461.7,2460.3,0.0011]
[1769879394382,1.25384728,2461.6,2460.3,0.0011]
[1769879394571,17.99314104,2462.7,2460.3,0.0011]
[1769879394772,13.078,2462.6,2460.3,0.0011]
[1769879394974,0.1024,2462.5,2460.3,0.0011]
[1769879395189,30.0,2462.4,2460.3,0.0011]
[1769879395368,0.1024,2461.9,2460.0,0.0011]
[1769879395574,0.1024,2461.7,2460.0,0.0011]
[1769879395804,0.1024,2461.5,2460.0,0.0011]
[1769879396004,1.28385495,2461.5,2460.0,0.0011]
[1769879396207,0.1024,2461.8,2460.0,0.0011]
[1769879396724,0.1024,2461.6,2460.0,0.0011]
[1769879396911,0.1024,2461.6,2459.1,0.0011]
[1769879396912,0.2335703,2461.3,2459.1,0.0011]
[1769879397094,7.25277339,2461.5,2458.1,0.0011]
[1769879397095,0.1024,2460.8,2458.1,0.0011]
[1769879397301,10.84058965,2460.2,2458.1,0.0011]
[1769879397621,10.83950065,2459.8,2457.9,0.0011]
[1769879397923,7.48634369,2459.9,2456.9,0.0011]
[1769879397924,0.1024,2459.0,2456.9,0.0011]
[1769879398125,0.1024,2458.8,2456.9,0.0011]
[1769879398285,0.1024,2458.6,2456.9,0.0011]
[1769879398484,2.623,2458.5,2456.9,0.0011]
[1769879398782,1.73623318,2458.8,2456.9,0.0011]
[1769879398984,0.1024,2459.5,2456.9,0.0011]
[1769879399184,30.0,2459.5,2456.9,0.0011]
[1769879399508,0.1024,2459.4,2456.9,0.0011]
[1769879399820,0.1024,2459.4,2455.8,0.21008123]
[1769879399821,10.66663701,2458.8,2455.8,0.21008123]
[1769879399985,32.12791134,2458.7,2455.8,0.21008123]
[1769879400186,0.3359703,2458.5,2455.2,2.00182925]
[1769879400381,31.14649379,2458.4,2455.2,15.56189708]
[1769879400584,1.79194104,2458.7,2456.1,13.56006783]
[1769879400784,7.25277339,2457.3,2455.6,0.012212]
[1769879401082,7.25277339,2457.3,2455.5,0.012212]
[1769879401083,0.012212,2456.8,2455.2,15.61982215]
[1769879401300,0.01221274,2457.8,2455.6,2.05519096]
[1769879401620,0.01221274,2458.4,2455.5,0.01221274]
[1769879401621,0.01221274,2458.3,2455.8,0.01221274]
[1769879401781,0.43108553,2458.4,2455.8,0.01221274]
[1769879401782,0.01221274,2459.9,2457.3,15.56204239]
[1769879401982,0.01221274,2460.6,2458.3,13.56006783]
[1769879402222,7.25277339,2461.0,2458.0,2.0712946]
[1769879402381,0.01221274,2460.8,2458.6,13.56006783]
[1769879402585,0.01221274,2461.4,2459.2,2.01480976]
[1769879402819,0.01221274,2461.7,2459.4,2.06382052]
[1769879403022,0.01221274,2462.5,2460.2,15.61192343]
[1769879403196,7.25277339,2463.4,2459.5,0.6726159]
[1769879403197,0.01221274,2461.1,2459.5,0.6726159]
[1769879403401,0.01221274,2460.7,2459.2,2.86680976]
[1769879403615,0.01221274,2461.2,2459.2,0.852]
[1769879403815,0.01221274,2460.4,2458.5,2.02966294]
[1769879404018,30.0,2461.1,2458.5,2.02966294]
[1769879404019,0.01221274,2461.2,2458.9,2.05537132]
[1769879404237,0.01221274,2461.2,2458.2,1.5246159]
[1769879404238,0.01221274,2458.9,2455.9,4.267]
[1769879404427,0.01221274,2459.5,2457.0,0.01221274]
[1769879404428,1.20172445,2458.4,2457.0,0.01221274]
[1769879404724,7.25277339,2459.5,2457.6,0.01803964]
[1769879404725,0.01221274,2459.0,2457.6,0.01803964]
[1769879404921,0.01221274,2458.6,2457.6,0.01803964]
[1769879405094,0.01221274,2458.4,2457.6,0.01803964]
[1769879405293,0.01803964,2457.6,2455.7,13.56006783]
[1769879405511,0.01221274,2457.9,2455.8,0.01221274]
[1769879405512,0.68125878,2457.9,2455.8,0.01221274]
[1769879405819,0.01221274,2458.2,2456.2,1.01780983]
[1769879406006,0.68125878,2458.1,2455.6,0.01221274]
[1769879406213,0.210115,2459.1,2457.0,0.01221274]
[1769879406411,0.01221274,2459.4,2457.0,0.01221274]
[1769879406610,0.01221274,2459.4,2456.6,0.01221274]
[1769879406611,0.03663822,2456.8,2455.8,0.01221274]
[1769879406932,0.01221274,2455.5,2454.6,2.00764487]
[1769879407222,0.01221747,2455.3,2454.6,2.00764487]
[1769879407518,0.01221747,2455.6,2454.6,2.00764487]
[1769879407715,10.59333493,2456.8,2454.6,2.00764487]
[1769879407920,0.1024,2456.5,2454.2,0.21170512]
[1769879408126,0.1024,2456.5,2453.6,3.24311295]
[1769879408127,0.32197749,2456.4,2456.0,3.30436219]
[1769879408310,0.18432,2456.6,2456.4,5.93001044]
[1769879408513,0.50522855,2456.3,2453.7,2.04829689]
[1769879408714,0.50522855,2456.3,2452.8,0.22648255]
[1769879408715,0.29396004,2456.2,2452.8,0.22648255]
[1769879409023,0.01221747,2455.1,2452.6,13.99999464]
[1769879409240,0.01222767,2455.5,2453.2,13.99388591]
[1769879409413,0.01222767,2454.7,2452.7,2.06265713]
[1769879409600,0.01222767,2453.8,2452.3,16.06915777]
[1769879409802,0.01222767,2455.2,2452.9,13.99388591]
[1769879410003,0.01222767,2455.7,2453.1,13.99388591]
[1769879410206,0.24485021,2456.5,2454.1,13.99388591]
[1769879410515,13.678389,2456.4,2454.3,13.99388591]
[1769879410716,0.01222767,2455.1,2453.3,15.01289723]
[1769879410936,0.01222767,2455.5,2453.3,17.04680091]
[1769879411101,0.01222767,2456.0,2453.3,17.04680091]
[1769879411102,0.01222767,2457.0,2454.3,13.99388591]
[1769879411297,0.01222767,2457.0,2454.2,0.01222767]
[1769879411298,0.01222767,2457.4,2454.9,0.01222767]
[1769879411533,0.01222767,2457.1,2455.2,13.99388591]
[1769879411742,0.01222767,2457.1,2455.2,15.3932745]
[1769879412022,0.01222767,2456.6,2455.2,13.99388591]
[1769879412212,0.01222767,2457.0,2455.2,13.99388591]
[1769879412415,0.01222767,2456.4,2455.2,13.99388591]
[1769879412633,0.01222767,2457.4,2455.4,13.99388591]
[1769879412814,0.01222767,2457.4,2455.3,1.01820551]
[1769879412815,0.01222767,2458.0,2455.6,13.99388591]
[1769879413017,0.01222767,2457.6,2455.6,13.99388591]
[1769879413215,0.853,2461.6,2456.6,0.11462767]
[1769879413216,0.01222767,2459.6,2456.6,0.11462767]
[1769879413507,0.01222767,2458.6,2456.9,13.99388591]
[1769879413717,0.01222767,2459.7,2457.0,13.99999974]
[1769879413933,0.01222767,2459.7,2457.2,13.98777207]
[1769879414132,0.01222767,2458.9,2457.2,13.98777207]
[1769879414306,0.01222767,2459.7,2457.2,15.00518669]
[1769879414503,0.01222767,2458.7,2457.2,13.98777207]
[1769879414704,0.63795056,2453.5,2453.0,0.01222767]
[1769879414908,0.63795056,2453.5,2452.8,0.01222767]
[1769879414909,0.49811804,2456.7,2454.3,0.01222767]
[1769879415148,0.01222767,2455.5,2453.3,13.11206459]
[1769879415635,0.01222767,2455.3,2453.4,0.01222767]
[1769879415849,0.01803964,2455.4,2453.6,0.01222767]
[1769879416040,0.01222767,2456.5,2454.5,13.11206459]
[1769879416206,0.01222767,2456.5,2453.3,13.12138627]
[1769879416207,0.01222767,2456.1,2453.3,13.12138627]
[1769879416406,0.01222767,2455.6,2453.3,13.1091586]
[1769879416610,0.01222767,2454.7,2451.3,13.1091586]
[1769879416834,0.01222767,2454.7,2452.0,0.01222767]
[1769879417041,0.01222767,2454.2,2451.9,13.1091586]
[1769879417228,0.01222817,2454.1,2451.9,13.1091586]
[1769879417539,0.01222817,2454.3,2452.1,13.12138677]
[1769879417716,0.1024,2454.5,2452.5,13.1091586]
[1769879417717,0.01222817,2454.5,2452.5,13.1091586]
[1769879417917,0.01222817,2454.3,2452.5,13.1091586]
[1769879418818,0.01222817,2453.9,2451.5,13.1091586]
[1769879419020,0.01222817,2453.9,2451.1,0.01222817]
[1769879419021,0.01222817,2453.8,2451.7,13.12138677]
[1769879419340,0.01223141,2453.1,2451.7,13.1091586]
[1769879419758,0.01223141,2453.8,2451.7,13.1091586]
[1769879419908,0.01223141,2453.8,2451.7,14.42007446]
[1769879419909,0.01223141,2453.5,2451.7,14.42007446]
[1769879420208,0.01223141,2454.0,2452.0,13.1091586]
[1769879420416,0.01223141,2454.7,2452.0,13.1091586]
[1769879420638,0.01223141,2454.7,2452.5,13.1091586]
[1769879420855,0.01223141,2454.5,2452.5,13.1091586]
[1769879421077,0.01223141,2454.5,2451.6,13.1091586]
[1769879421078,0.01223141,2453.9,2451.6,13.1091586]
[1769879421353,0.01223141,2452.7,2450.7,0.853]
[1769879421511,0.01223141,2451.9,2450.6,0.70294357]
[1769879421710,0.1024,2452.4,2450.6,0.70294357]
[1769879421939,13.678389,2452.3,2450.6,0.70294357]
[1769879422143,13.69062665,2452.2,2450.6,0.70294357]
[1769879422346,0.01223765,2451.8,2450.6,0.70294357]
[1769879422643,13.79302665,2452.1,2450.6,0.70294357]
[1769879422644,0.44061804,2452.6,2450.7,13.12139625]
[1769879422971,13.678389,2452.5,2450.8,13.1091586]
[1769879423248,13.678389,2452.5,2450.6,0.69721357]
[1769879423249,0.01223765,2453.3,2451.0,13.04639625]
[1769879423409,0.01223765,2454.3,2451.5,0.01223765]
[1769879423611,0.01223765,2453.6,2450.8,0.01223765]
[1769879423811,0.01223765,2452.3,2450.3,12.65643487]
[1769879424111,0.01223765,2453.8,2451.5,12.65643487]
[1769879424351,0.01223765,2452.0,2449.5,12.65643487]
[1769879424564,0.01223765,2452.0,2449.3,0.125]
[1769879424565,0.01223765,2450.8,2449.3,0.125]
[1769879424716,0.01223765,2451.1,2449.3,0.125]
[1769879424911,0.01223765,2450.5,2449.3,0.125]
[1769879425113,0.08527549,2453.5,2449.3,0.125]
[1769879425313,0.01224364,2451.3,2449.8,0.854]
[1769879425570,0.01224364,2453.0,2450.3,12.66867851]
[1769879425720,4.10224364,2452.7,2450.5,12.65643487]
[1769879426030,0.01224364,2452.0,2450.0,2.11263944]
[1769879426366,0.01224364,2453.7,2450.8,1.02007507]
[1769879426515,0.01224364,2453.1,2450.9,1.36765099]
[1769879426715,0.01224364,2452.6,2450.7,12.65643487]
[1769879427021,0.01224364,2452.2,2450.0,1.08]
[1769879427220,0.01224364,2452.6,2450.7,1.0201106]
[1769879427414,0.01224364,2452.4,2449.3,0.125]
[1769879427617,0.01224364,2452.7,2450.3,0.01224364]
[1769879427817,0.01224364,2453.6,2451.1,0.01224364]
[1769879428049,0.01224364,2453.1,2450.9,2.02527778]
[1769879428373,0.01224364,2454.6,2451.8,12.66867851]
[1769879428534,0.01224364,2454.6,2452.0,12.65643487]
[1769879428535,0.01224364,2453.8,2452.0,12.65643487]
[1769879428726,0.01224364,2452.9,2450.4,2.11221213]
[1769879428921,0.01224364,2452.9,2450.0,8.33277339]
[1769879428922,0.01224364,2452.0,2450.0,1.08]
[1769879429260,0.01224364,2452.0,2449.1,4.08304627]
[1769879429261,0.01224364,2450.8,2448.5,0.9538293]
[1769879429435,0.44354041,2451.9,2448.8,0.01224364]
[1769879429740,13.39044385,2452.4,2448.6,13.52267851]
[1769879429741,0.01224364,2450.9,2448.7,0.01224364]
[1769879429950,0.01224364,2451.2,2449.1,0.01224364]
[1769879430131,0.01224414,2451.0,2448.9,0.01224364]
[1769879430334,0.01224364,2451.2,2448.9,0.01224364]
[1769879430335,0.01224414,2451.2,2448.9,14.95885038]
[1769879430653,0.01224414,2451.7,2449.3,12.66867901]
[1769879430836,0.01224414,2452.4,2449.3,12.66867901]
[1769879430837,0.01224414,2451.9,2450.0,12.65643487]
[1769879431041,0.01224414,2451.5,2449.4,1.26809232]
[1769879431218,0.01224414,2451.4,2449.1,12.65643487]
[1769879431415,0.01224414,2451.4,2449.1,14.65650197]
[1769879431416,0.01224414,2450.8,2449.1,14.65650197]
[1769879431646,0.01224414,2450.3,2448.7,0.0011]
[1769879431951,0.01224414,2451.2,2448.7,12.65753487]
[1769879432163,0.01224539,2450.0,2448.9,12.65643487]
[1769879432368,0.01224539,2450.9,2448.7,0.0011]
[1769879432369,0.01224539,2450.1,2448.7,0.0011]
[1769879432547,0.01224539,2449.7,2448.7,0.0011]
[1769879432844,0.01224539,2449.4,2448.7,0.0011]
[1769879433015,0.01224539,2449.4,2448.5,0.9549293]
[1769879433016,0.01224539,2449.0,2448.5,0.9549293]
[1769879433222,0.01224964,2449.7,2448.5,0.94919959]
[1769879433412,0.01224964,2449.5,2448.5,0.89919959]
[1769879433838,0.01224964,2447.1,2444.6,12.65643487]
[1769879434038,0.01224964,2447.1,2443.2,12.65643487]
[1769879434039,0.01224964,2446.0,2443.2,12.65643487]
[1769879434333,0.01224964,2446.7,2443.2,12.65643487]
[1769879434334,0.21013447,2447.5,2444.4,0.01227018]
[1769879434467,0.45080322,2446.8,2444.2,4.09131341]
[1769879434634,2.812,2446.7,2443.3,1.9510136]
[1769879434835,0.45080322,2446.7,2443.3,0.01227018]
[1769879435098,0.10425412,2445.9,2443.4,12.65643487]
[1769879435392,30.0,2445.8,2442.8,0.80115024]
[1769879435664,0.51170826,2445.7,2442.8,12.65643487]
[1769879435864,0.10425412,2445.9,2443.2,12.65643487]
[1769879436063,0.10425412,2445.9,2442.9,0.855]
[1769879436064,13.394,2445.8,2442.9,0.855]
[1769879436265,0.10425412,2445.9,2443.0,12.65643487]
[1769879436464,12.89379393,2448.9,2445.1,0.01227219]
[1769879436665,12.89379393,2449.9,2445.1,0.01227219]
[1769879436970,0.01227219,2445.6,2443.1,0.01227219]
[1769879437164,0.01227219,2446.1,2442.8,12.74785007]
[1769879437366,0.0122732,2444.7,2442.9,1.37712993]
[1769879437573,0.0122732,2445.0,2442.4,1.12431129]
[1769879437574,0.0122732,2444.0,2442.4,1.12431129]
[1769879437780,0.0122732,2444.0,2441.0,0.00976422]
[1769879437781,0.128,2441.8,2441.0,0.00976422]
[1769879438067,0.2104,2441.8,2441.0,0.00976422]
[1769879438268,0.01228803,2441.2,2441.0,0.00976422]
[1769879438455,0.01228803,2441.4,2441.0,0.00976422]
[1769879438456,0.01228803,2442.7,2441.0,1.03392591]
[1769879438656,0.01228803,2443.8,2441.4,0.01228803]
[1769879438866,0.1024,2445.1,2441.0,0.00976422]
[1769879438867,0.01228803,2443.4,2441.0,0.00976422]
[1769879439055,0.01228803,2443.2,2441.0,1.45909894]
[1769879439257,0.01228803,2444.4,2441.1,0.01228803]
[1769879439438,0.01228803,2444.2,2441.9,12.74785007]
[1769879439840,0.01228803,2444.5,2442.1,0.01228803]
[1769879440041,0.01228803,2445.8,2443.0,12.7601381]
[1769879440237,13.1030134,2447.5,2443.1,0.17724261]
[1769879440238,0.01228803,2445.1,2443.1,0.17724261]
[1769879440441,0.01228803,2445.0,2442.2,12.7601381]
[1769879440657,0.01228803,2445.0,2441.9,0.01228803]
[1769879440658,13.1030134,2445.7,2442.0,0.01228803]
[1769879440861,13.1030134,2445.7,2441.0,0.01228803]
[1769879440862,1.35228592,2442.2,2440.0,1.37525604]
[1769879441092,26.04554224,2442.1,2439.9,0.01228803]
[1769879441292,0.01228954,2440.7,2438.0,14.15047832]
[1769879441508,0.01228954,2440.7,2437.3,3.03836334]
[1769879441509,0.01228954,2439.3,2438.1,0.01228803]
[1769879441719,0.01228954,2440.9,2438.1,13.40762642]
[1769879441868,0.01228954,2442.1,2438.2,1.35305067]
[1769879442195,2.46529457,2441.9,2439.3,0.01229457]
[1769879442365,2.46529457,2441.9,2439.2,0.01229457]
[1769879442366,0.01229457,2440.7,2439.4,0.01228803]
[1769879442567,1.21118273,2442.2,2438.8,0.01229457]
[1769879442859,4.59029457,2441.1,2438.9,0.01228803]
[1769879443194,0.01229508,2440.6,2438.6,0.01228803]
[1769879443510,0.01229457,2441.0,2438.6,0.01228803]
[1769879443511,0.01229508,2441.9,2439.8,0.01229508]
[1769879443670,0.01229508,2442.1,2439.2,13.40762642]
[1769879443867,0.01229508,2441.9,2438.5,0.20538334]
[1769879444119,0.01229508,2441.9,2438.1,7.1752045]
[1769879444120,0.2124,2439.2,2437.3,21.58283092]
[1769879444265,12.96197296,2442.7,2438.7,0.01229508]
[1769879444465,12.96197296,2442.7,2437.9,0.01229508]
[1769879444466,0.01229508,2440.3,2437.5,13.47770182]
[1769879444770,0.01229508,2440.3,2436.8,0.01229508]
[1769879444771,0.01229508,2438.0,2435.9,4.10511125]
[1769879444969,0.43538056,2440.2,2436.4,15.57110614]
[1769879445302,0.51683231,2440.7,2439.0,0.01230365]
[1769879445510,2.03963535,2444.9,2439.9,13.40762642]
[1769879445791,0.01230365,2443.3,2441.0,13.40762642]
[1769879445992,0.01230365,2443.3,2440.6,0.01230365]
[1769879446302,0.01230365,2445.3,2441.8,1.02383487]
[1769879446595,12.96197296,2446.4,2441.8,1.02383487]
[1769879446596,0.01230365,2445.9,2442.3,13.40762642]
[1769879446804,0.01230365,2445.8,2443.1,0.01230365]
[1769879446969,0.001,2446.0,2443.2,0.01230365]
[1769879447170,0.001,2446.0,2442.4,0.01230365]
[1769879447370,0.001,2446.0,2442.2,0.01230365]
[1769879447371,0.36985229,2445.9,2443.7,0.01230365]
[1769879447593,0.001,2446.0,2444.9,0.01230365]
[1769879447792,0.01230365,2448.9,2445.8,0.01230365]
[1769879447996,0.01230365,2448.9,2445.4,0.01230365]
[1769879447997,0.01230365,2448.3,2445.4,0.01230365]
[1769879448166,0.01230365,2448.0,2444.7,13.40762642]
[1769879448363,0.01230365,2448.0,2445.1,0.01230365]
[1769879448364,0.01230365,2447.9,2445.1,0.01230365]
[1769879448569,0.01230365,2449.4,2446.0,0.01230365]
[1769879448769,0.01230365,2450.5,2446.9,0.01230365]
[1769879448770,0.01230365,2449.8,2446.9,0.01230365]
[1769879448983,0.36861239,2450.4,2447.0,0.01230365]
[1769879449212,0.29598851,2450.0,2447.6,0.01230365]
[1769879449515,0.01230365,2450.9,2447.6,0.01230365]
[1769879449516,0.01230365,2451.9,2448.6,0.01230365]
[1769879449665,0.01230365,2451.9,2448.4,0.01230365]
[1769879449666,0.28899976,2452.1,2450.0,0.01230365]
[1769879450000,0.001,2452.1,2450.2,0.01230365]
[1769879450169,0.001,2452.1,2448.1,0.01230365]
[1769879450170,0.01230365,2451.1,2448.1,0.01230365]
[1769879450370,0.49981744,2451.0,2448.2,0.01230365]
[1769879450681,0.01230365,2450.4,2447.2,0.01230365]
[1769879451006,0.01230365,2450.2,2446.5,0.01230365]
[1769879451164,0.01230365,2449.4,2447.1,0.01230365]
[1769879451372,0.01230365,2449.5,2446.9,0.01230365]
[1769879451714,0.01230365,2449.4,2446.8,0.01230365]
[1769879451872,0.01230365,2449.6,2446.8,0.01230365]
[1769879451873,0.01230365,2450.3,2447.7,14.44128702]
[1769879452073,0.5482341,2451.9,2449.1,0.01230365]
[1769879452276,0.01230365,2451.5,2449.0,0.01230365]
[1769879452569,0.01230365,2451.2,2448.9,0.01230365]
[1769879452791,0.01230365,2451.2,2447.6,7.18750815]
[1769879452792,0.01230365,2449.9,2447.3,13.40762642]
[1769879452992,0.01230365,2449.9,2445.8,0.01230365]
[1769879452993,0.01230365,2448.3,2445.8,0.01230365]
[1769879453203,0.01230365,2448.9,2445.6,0.01230365]
[1769879453204,0.01230365,2449.1,2446.7,0.01230365]
[1769879453498,0.01230365,2448.8,2446.7,0.01230365]
[1769879453670,0.01230365,2448.8,2446.6,0.01230365]
[1769879453671,0.01230365,2448.8,2446.6,1.03410548]
[1769879453872,0.01230365,2451.4,2448.4,0.01230365]
[1769879454171,0.01230365,2451.4,2448.0,0.01230365]
[1769879454172,0.01230365,2450.5,2448.0,0.01230365]
[1769879454490,0.01230365,2450.1,2448.0,0.01230365]
[1769879454692,0.01230365,2450.7,2448.1,0.01230365]
[1769879454902,0.01230365,2450.4,2448.2,0.01230365]
[1769879455103,26.96930365,2450.3,2446.6,7.1752045]
[1769879455269,0.01230365,2450.0,2447.9,0.01230365]
[1769879455470,0.50528775,2450.9,2448.4,0.01230365]
[1769879455671,0.01230365,2451.3,2448.7,0.01230365]
[1769879455874,0.01230365,2451.9,2449.3,13.40762642]
[1769879456079,0.21294954,2452.1,2450.2,0.01230365]
[1769879456331,0.21294954,2452.1,2449.6,13.41993007]
[1769879456332,0.001,2452.1,2450.3,0.01230365]
[1769879456488,0.001,2452.1,2450.2,0.01230365]
[1769879456828,0.001,2452.1,2450.1,0.01230365]
[1769879456977,0.001,2452.1,2450.6,0.01230365]
[1769879457181,0.001,2452.1,2449.4,0.01230365]
[1769879457379,0.01230365,2451.3,2448.8,13.40762642]
[1769879457687,0.01230365,2450.2,2448.1,0.0011]
[1769879457885,0.01230365,2449.9,2448.1,0.0011]
[1769879458088,0.01230365,2449.1,2447.9,0.0011]
[1769879458392,0.01230365,2449.2,2447.9,0.0011]
[1769879458575,0.01230365,2448.7,2446.9,0.0011]
[1769879459104,0.01230365,2448.7,2445.4,0.01230365]
[1769879459105,0.01230365,2447.9,2445.4,0.01230365]
[1769879459406,0.01230365,2447.1,2444.8,0.01230365]
[1769879459587,0.01230365,2448.5,2445.3,0.01230365]
[1769879459786,0.01230365,2448.8,2446.6,13.40762642]
[1769879460005,0.01230365,2448.9,2446.6,13.40762642]
[1769879460180,0.01230365,2449.3,2447.3,0.01230365]
[1769879460378,0.01230365,2450.8,2448.2,0.01230365]
[1769879460575,0.01230365,2451.6,2448.8,0.01230365]
[1769879460800,0.001,2452.1,2450.1,0.01230365]
[1769879461102,0.001,2452.1,2450.4,0.01230365]
[1769879461304,0.01230365,2453.2,2451.0,0.01230365]
[1769879461611,0.01230365,2454.3,2451.0,0.01230365]
[1769879461612,0.30456593,2454.7,2452.5,0.01230365]
[1769879461785,0.01230365,2454.9,2452.6,0.01230365]
[1769879461972,0.01230365,2454.9,2451.8,2.09487358]
[1769879462171,0.01230365,2454.9,2451.1,0.01230365]
[1769879462172,0.01230365,2454.3,2452.0,2.02011999]
[1769879462401,0.01230365,2454.3,2451.9,0.22179101]
[1769879462602,0.01230365,2454.3,2451.3,13.40762642]
[1769879462603,0.01230365,2454.4,2451.3,13.40762642]
[1769879462778,0.01230365,2453.6,2451.3,13.40762642]
[1769879462980,12.83235323,2452.4,2451.3,0.01230365]
[1769879463191,0.21177645,2447.8,2445.3,0.01230365]
[1769879463390,0.47372713,2447.7,2445.4,0.17887153]
[1769879463617,0.47372713,2447.7,2445.9,0.01230365]
[1769879463794,14.458,2447.6,2445.5,0.17887153]
[1769879463995,31.46832762,2447.5,2445.6,0.17887153]
[1769879464194,31.46832762,2447.5,2443.3,2.08822564]
[1769879464195,1.45602397,2447.5,2444.7,13.40762642]
[1769879464401,0.47372713,2447.7,2446.3,0.01230365]
[1769879464725,12.96197296,2452.6,2448.3,0.01230365]
[1769879464893,12.96197296,2452.6,2448.7,0.01230365]
[1769879465094,0.01230365,2452.4,2448.4,0.01230365]
[1769879465341,0.2116117,2451.7,2448.6,0.01230365]
[1769879465491,3.6018422,2450.3,2448.1,13.40762642]
[1769879465838,0.36047222,2450.2,2448.5,0.01230365]
[1769879465987,3.6018422,2450.3,2448.5,0.01230365]
[1769879466187,3.6018422,2450.3,2448.1,13.40762642]
[1769879466188,0.1024,2450.1,2446.9,13.41993007]
[1769879466487,0.1024,2450.1,2444.8,0.01230365]
[1769879466488,0.6394,2448.1,2444.8,0.01230365]
[1769879466688,0.1024,2447.9,2445.1,0.01230365]
[1769879466888,0.1024,2447.9,2443.6,0.01230365]
[1769879466889,0.01230365,2447.1,2443.6,0.01230365]
[1769879467191,0.01230365,2447.1,2443.9,0.01230365]
[1769879467192,0.28672,2446.1,2443.9,0.01230365]
[1769879467521,0.01230365,2445.2,2442.3,0.01230365]
[1769879467823,0.01230365,2444.5,2440.8,12.83544981]
[1769879467988,13.3728422,2443.7,2441.6,0.01230365]
[1769879468320,13.3728422,2443.7,2441.3,1.66830365]
[1769879468321,1.33728422,2443.6,2441.3,1.66830365]
[1769879468510,13.3728422,2443.7,2442.9,0.01230365]
[1769879468707,0.01230365,2445.8,2443.2,0.01230365]
[1769879469016,0.01230365,2446.8,2443.2,0.01230365]
[1769879469017,13.40467837,2448.6,2445.7,0.01230365]
[1769879469205,30.01230365,2448.0,2445.4,0.01230365]
[1769879469519,0.01230365,2446.7,2443.8,0.01230365]
[1769879469723,0.01230365,2446.0,2443.3,0.01230365]
[1769879470020,0.01230365,2445.1,2442.8,0.0011]